[Event "Titled Tuesday Blitz January 31 Late 2023"]
[White "Fiorito, Francisco"]
[Black "Abdyzhaparov, Aidar"]
[WhiteFideId "180165"]
[BlackFideId "13800361"]
[WhiteElo "2305"]
[BlackElo "1978"]
[Result "0-1"]
[Round "04"]
[TimeControl "180+2"]
[Date "2023.01.31"]
[WhiteClock "0:00:11"]
[BlackClock "0:00:03"]

1. Nf3 {[%clk 0:03:00]}  d6 {[%clk 0:03:00]} 2. d4 {[%clk 0:02:53]}  g6 {[%clk 0:03:01]} 3. e4 {[%clk 0:02:47]}  Bg7 {[%clk 0:03:02]} 4. c4 {[%clk 0:02:45]}  Nf6 {[%clk 0:03:02]} 5. Nc3 {[%clk 0:02:45]}  O-O {[%clk 0:03:02]} 6. Be2 {[%clk 0:02:46]}  Na6 {[%clk 0:02:56]} 7. O-O {[%clk 0:02:43]}  c5 {[%clk 0:02:56]} 8. b3 {[%clk 0:02:41]}  cxd4 {[%clk 0:02:55]} 9. Nxd4 {[%clk 0:02:38]}  b6 {[%clk 0:02:55]} 10. Bb2 {[%clk 0:02:32]}  Bb7 {[%clk 0:02:55]} 11. f3 {[%clk 0:02:29]}  Nc5 {[%clk 0:02:52]} 12. Rc1 {[%clk 0:02:21]}  Nh5 {[%clk 0:02:51]} 13. Qd2 {[%clk 0:02:02]}  Nf4 {[%clk 0:02:46]} 14. Nd5 {[%clk 0:01:50]}  Nxe2+ {[%clk 0:02:33]} 15. Qxe2 {[%clk 0:01:39]}  e6 {[%clk 0:02:25]} 16. Ne3 {[%clk 0:01:33]}  d5 {[%clk 0:02:24]} 17. Rcd1 {[%clk 0:01:29]}  Qe7 {[%clk 0:02:00]} 18. exd5 {[%clk 0:01:21]}  exd5 {[%clk 0:02:01]} 19. Ndf5 {[%clk 0:01:21]}  gxf5 {[%clk 0:01:45]} 20. Bxg7 {[%clk 0:01:19]}  Rfe8 {[%clk 0:01:37]} 21. Bd4 {[%clk 0:01:18]}  f4 {[%clk 0:01:32]} 22. Qf2 {[%clk 0:01:11]}  Qg5 {[%clk 0:01:15]} 23. Ng4 {[%clk 0:01:09]}  Re6 {[%clk 0:00:46]} 24. h4 {[%clk 0:01:02]}  Qf5 {[%clk 0:00:36]} 25. cxd5 {[%clk 0:01:01]}  Bxd5 {[%clk 0:00:35]} 26. Nf6+ {[%clk 0:00:33]}  Rxf6 {[%clk 0:00:29]} 27. Bxf6 {[%clk 0:00:32]}  Qxf6 {[%clk 0:00:16]} 28. Rxd5 {[%clk 0:00:31]}  Ne6 {[%clk 0:00:17]} 29. Rc1 {[%clk 0:00:27]}  h6 {[%clk 0:00:17]} 30. h5 {[%clk 0:00:25]}  Re8 {[%clk 0:00:15]} 31. Re1 {[%clk 0:00:24]}  Rc8 {[%clk 0:00:14]} 32. Qd2 {[%clk 0:00:21]}  Qh4 {[%clk 0:00:11]} 33. Rde5 {[%clk 0:00:19]}  Qg3 {[%clk 0:00:09]} 34. Qf2 {[%clk 0:00:18]}  Qg7 {[%clk 0:00:07]} 35. Qh4 {[%clk 0:00:17]}  Ng5 {[%clk 0:00:05]} 36. Qg4 {[%clk 0:00:15]}  Rf8 {[%clk 0:00:04]} 37. Rf5 {[%clk 0:00:15]}  Kh7 {[%clk 0:00:04]} 38. Rxf4 {[%clk 0:00:15]}  f5 {[%clk 0:00:03]} 39. Rxf5 {[%clk 0:00:14]}  Rg8 {[%clk 0:00:02]} 40. Kh2 {[%clk 0:00:13]}  Qc7+ {[%clk 0:00:02]} 41. Qf4 {[%clk 0:00:13]}  Qg7 {[%clk 0:00:03]} 42. Ree5 {[%clk 0:00:11]}  Ne6 {[%clk 0:00:02]} 43. Rxe6 {[%clk 0:00:11]}  Qxg2# {[%clk 0:00:03]} 0-1


[Site "https://www.chess.com"]

[Event "Titled Tuesday Blitz January 31 Late 2023"]
[White "Nikologorsky, Matfei"]
[Black "Marczuk, Dominik"]
[WhiteFideId "24102474"]
[BlackFideId "1111264"]
[WhiteElo "2182"]
[BlackElo "2253"]
[Result "1-0"]
[Round "04"]
[TimeControl "180+2"]
[Date "2023.01.31"]
[WhiteClock "0:00:08"]
[BlackClock "0:00:02"]

1. e4 {[%clk 0:03:00]}  c5 {[%clk 0:02:57]} 2. Nf3 {[%clk 0:03:00]}  d6 {[%clk 0:02:57]} 3. d4 {[%clk 0:03:01]}  cxd4 {[%clk 0:02:58]} 4. Nxd4 {[%clk 0:03:01]}  Nf6 {[%clk 0:02:59]} 5. Nc3 {[%clk 0:03:02]}  a6 {[%clk 0:02:59]} 6. h3 {[%clk 0:03:02]}  e5 {[%clk 0:02:59]} 7. Nde2 {[%clk 0:03:02]}  b5 {[%clk 0:02:59]} 8. Ng3 {[%clk 0:02:58]}  Be6 {[%clk 0:02:54]} 9. Be2 {[%clk 0:02:50]}  Nbd7 {[%clk 0:02:48]} 10. O-O {[%clk 0:02:49]}  b4 {[%clk 0:02:48]} 11. Na4 {[%clk 0:02:46]}  Be7 {[%clk 0:02:42]} 12. c3 {[%clk 0:02:40]}  a5 {[%clk 0:02:41]} 13. b3 {[%clk 0:02:38]}  O-O {[%clk 0:02:38]} 14. cxb4 {[%clk 0:02:33]}  axb4 {[%clk 0:02:38]} 15. Bd2 {[%clk 0:02:31]}  d5 {[%clk 0:02:35]} 16. exd5 {[%clk 0:02:28]}  Nxd5 {[%clk 0:02:17]} 17. Bf3 {[%clk 0:02:20]}  Rc8 {[%clk 0:02:14]} 18. Re1 {[%clk 0:02:16]}  Nc3 {[%clk 0:02:07]} 19. Bxc3 {[%clk 0:02:04]}  bxc3 {[%clk 0:02:07]} 20. Qc2 {[%clk 0:02:05]}  f5 {[%clk 0:01:49]} 21. Rac1 {[%clk 0:01:13]}  e4 {[%clk 0:01:39]} 22. Bxe4 {[%clk 0:01:13]}  fxe4 {[%clk 0:01:38]} 23. Qxe4 {[%clk 0:01:14]}  Rf6 {[%clk 0:01:18]} 24. Nh5 {[%clk 0:01:10]}  Rh6 {[%clk 0:01:09]} 25. Nf4 {[%clk 0:01:07]}  Nf8 {[%clk 0:01:02]} 26. Rxc3 {[%clk 0:00:40]}  Rxc3 {[%clk 0:01:00]} 27. Nxc3 {[%clk 0:00:40]}  Bc5 {[%clk 0:00:39]} 28. b4 {[%clk 0:00:30]}  Ba7 {[%clk 0:00:26]} 29. Nxe6 {[%clk 0:00:29]}  Rxe6 {[%clk 0:00:24]} 30. Qc4 {[%clk 0:00:29]}  Qd4 {[%clk 0:00:18]} 31. Re4 {[%clk 0:00:15]}  Qxf2+ {[%clk 0:00:15]} 32. Kh2 {[%clk 0:00:15]}  Bb8+ {[%clk 0:00:15]} 33. Kh1 {[%clk 0:00:09]}  Qg3 {[%clk 0:00:04]} 34. Kg1 {[%clk 0:00:08]}  Ba7+ {[%clk 0:00:04]} 35. Kh1 {[%clk 0:00:08]}  Qf2 {[%clk 0:00:02]} 36. Kh2 {[%clk 0:00:08]} 1-0


[Site "https://www.chess.com"]

[Event "Titled Tuesday Blitz January 31 Late 2023"]
[White "Ibadov, Dashgyn"]
[Black "Pino Perez, Lazaro"]
[WhiteFideId "24107514"]
[BlackFideId "3517055"]
[WhiteElo "2391"]
[BlackElo "2142"]
[Result "1-0"]
[Round "04"]
[TimeControl "180+2"]
[Date "2023.01.31"]
[WhiteClock "0:00:28"]
[BlackClock "0:00:10"]

1. e4 {[%clk 0:03:00]}  c5 {[%clk 0:02:59]} 2. Nf3 {[%clk 0:02:58]}  g6 {[%clk 0:03:00]} 3. d4 {[%clk 0:02:57]}  cxd4 {[%clk 0:03:01]} 4. Nxd4 {[%clk 0:02:54]}  Nc6 {[%clk 0:03:01]} 5. Nc3 {[%clk 0:02:53]}  Bg7 {[%clk 0:03:01]} 6. Be3 {[%clk 0:02:54]}  Nf6 {[%clk 0:03:02]} 7. Nxc6 {[%clk 0:02:55]}  bxc6 {[%clk 0:03:01]} 8. e5 {[%clk 0:02:55]}  Ng8 {[%clk 0:03:01]} 9. Bd4 {[%clk 0:02:55]}  Nh6 {[%clk 0:02:57]} 10. e6 {[%clk 0:02:55]}  f6 {[%clk 0:02:40]} 11. exd7+ {[%clk 0:02:54]}  Bxd7 {[%clk 0:02:41]} 12. Bc4 {[%clk 0:02:49]}  Rb8 {[%clk 0:02:36]} 13. O-O {[%clk 0:02:47]}  Qa5 {[%clk 0:02:31]} 14. Re1 {[%clk 0:02:45]}  e5 {[%clk 0:02:31]} 15. f4 {[%clk 0:01:46]}  Rb4 {[%clk 0:01:47]} 16. fxe5 {[%clk 0:01:37]}  fxe5 {[%clk 0:01:40]} 17. b3 {[%clk 0:01:29]}  Rxc4 {[%clk 0:01:19]} 18. bxc4 {[%clk 0:01:30]}  O-O {[%clk 0:01:19]} 19. Bf2 {[%clk 0:01:24]}  Be6 {[%clk 0:00:33]} 20. Ne4 {[%clk 0:01:21]}  Bxc4 {[%clk 0:00:30]} 21. Qd6 {[%clk 0:01:06]}  Bd5 {[%clk 0:00:28]} 22. c4 {[%clk 0:00:40]}  Bxc4 {[%clk 0:00:18]} 23. Qxc6 {[%clk 0:00:41]}  Bd3 {[%clk 0:00:18]} 24. Qe6+ {[%clk 0:00:35]}  Kh8 {[%clk 0:00:17]} 25. Nd6 {[%clk 0:00:34]}  Qa6 {[%clk 0:00:12]} 26. Rad1 {[%clk 0:00:31]}  Bf5 {[%clk 0:00:10]} 27. Nf7+ {[%clk 0:00:28]} 1-0


[Site "https://www.chess.com"]

[Event "Titled Tuesday Blitz January 31 Late 2023"]
[White "Gomes, Luiz Alexandre de Souza"]
[Black "Yedidia, Daniel"]
[WhiteFideId "2102790"]
[BlackFideId "30905907"]
[WhiteElo "2254"]
[BlackElo "2041"]
[Result "0-1"]
[Round "04"]
[TimeControl "180+2"]
[Date "2023.01.31"]
[WhiteClock "0:00:17"]
[BlackClock "0:00:16"]

1. e4 {[%clk 0:03:00]}  e5 {[%clk 0:02:59]} 2. Nf3 {[%clk 0:03:00]}  Nc6 {[%clk 0:02:59]} 3. Bb5 {[%clk 0:03:00]}  a6 {[%clk 0:02:59]} 4. Ba4 {[%clk 0:03:00]}  Nf6 {[%clk 0:02:58]} 5. O-O {[%clk 0:03:01]}  Be7 {[%clk 0:02:57]} 6. Re1 {[%clk 0:03:01]}  b5 {[%clk 0:02:56]} 7. Bb3 {[%clk 0:03:02]}  O-O {[%clk 0:02:57]} 8. h3 {[%clk 0:03:02]}  d6 {[%clk 0:02:57]} 9. c3 {[%clk 0:03:02]}  Nb8 {[%clk 0:02:57]} 10. d3 {[%clk 0:03:02]}  c5 {[%clk 0:02:52]} 11. Nbd2 {[%clk 0:03:03]}  Be6 {[%clk 0:02:48]} 12. Nf1 {[%clk 0:03:02]}  c4 {[%clk 0:02:47]} 13. dxc4 {[%clk 0:03:02]}  bxc4 {[%clk 0:02:48]} 14. Bc2 {[%clk 0:03:02]}  Nbd7 {[%clk 0:02:47]} 15. Ne3 {[%clk 0:03:01]}  Nc5 {[%clk 0:02:47]} 16. Nf5 {[%clk 0:02:58]}  Bxf5 {[%clk 0:02:42]} 17. exf5 {[%clk 0:02:59]}  Rb8 {[%clk 0:02:38]} 18. b4 {[%clk 0:02:56]}  Ncd7 {[%clk 0:02:30]} 19. a4 {[%clk 0:02:55]}  Qc7 {[%clk 0:02:29]} 20. a5 {[%clk 0:02:47]}  d5 {[%clk 0:02:29]} 21. Bg5 {[%clk 0:02:45]}  Bd6 {[%clk 0:02:23]} 22. Ba4 {[%clk 0:02:40]}  h6 {[%clk 0:02:16]} 23. Bh4 {[%clk 0:02:37]}  d4 {[%clk 0:02:07]} 24. Rc1 {[%clk 0:02:14]}  dxc3 {[%clk 0:01:57]} 25. Re3 {[%clk 0:01:45]}  e4 {[%clk 0:01:47]} 26. Nd4 {[%clk 0:01:40]}  Bf4 {[%clk 0:01:38]} 27. Nc6 {[%clk 0:01:29]}  Bxe3 {[%clk 0:01:35]} 28. fxe3 {[%clk 0:01:28]}  Rb7 {[%clk 0:01:13]} 29. Rxc3 {[%clk 0:01:26]}  Ne5 {[%clk 0:01:09]} 30. Bg3 {[%clk 0:01:21]}  Nf3+ {[%clk 0:01:05]} 31. Qxf3 {[%clk 0:01:15]}  exf3 {[%clk 0:01:05]} 32. Bxc7 {[%clk 0:01:15]}  Rxc7 {[%clk 0:01:06]} 33. gxf3 {[%clk 0:01:14]}  Nd5 {[%clk 0:01:01]} 34. Rxc4 {[%clk 0:01:14]}  Nxe3 {[%clk 0:01:01]} 35. Rc5 {[%clk 0:01:14]}  Rfc8 {[%clk 0:00:58]} 36. Kf2 {[%clk 0:01:13]}  Nd1+ {[%clk 0:00:57]} 37. Bxd1 {[%clk 0:01:02]}  Rxc6 {[%clk 0:00:56]} 38. Rd5 {[%clk 0:00:59]}  Rb8 {[%clk 0:00:51]} 39. Rd4 {[%clk 0:00:56]}  Rc1 {[%clk 0:00:50]} 40. Be2 {[%clk 0:00:54]}  Rb1 {[%clk 0:00:49]} 41. Bxa6 {[%clk 0:00:54]}  R1xb4 {[%clk 0:00:49]} 42. Rd7 {[%clk 0:00:49]}  Ra8 {[%clk 0:00:48]} 43. Bb7 {[%clk 0:00:36]}  Rxa5 {[%clk 0:00:44]} 44. Be4 {[%clk 0:00:36]}  Rb8 {[%clk 0:00:37]} 45. Kg3 {[%clk 0:00:36]}  Kf8 {[%clk 0:00:35]} 46. h4 {[%clk 0:00:36]}  Re5 {[%clk 0:00:35]} 47. Kf4 {[%clk 0:00:35]}  Re7 {[%clk 0:00:36]} 48. Rd6 {[%clk 0:00:35]}  Rc7 {[%clk 0:00:34]} 49. h5 {[%clk 0:00:34]}  Ke7 {[%clk 0:00:34]} 50. Ra6 {[%clk 0:00:34]}  Rb2 {[%clk 0:00:34]} 51. f6+ {[%clk 0:00:34]}  gxf6 {[%clk 0:00:33]} 52. Kf5 {[%clk 0:00:35]}  Rh2 {[%clk 0:00:29]} 53. Kg4 {[%clk 0:00:33]}  Rg2+ {[%clk 0:00:26]} 54. Kh4 {[%clk 0:00:26]}  Rg5 {[%clk 0:00:26]} 55. Rb6 {[%clk 0:00:22]}  Rc1 {[%clk 0:00:23]} 56. f4 {[%clk 0:00:20]}  Rgc5 {[%clk 0:00:19]} 57. Kg4 {[%clk 0:00:17]}  f5+ {[%clk 0:00:16]} 58. Bxf5 {[%clk 0:00:17]}  Rg1+ {[%clk 0:00:16]} 0-1


[Site "https://www.chess.com"]

[Event "Titled Tuesday Blitz January 31 Late 2023"]
[White "Sliwicki, Damian"]
[Black "Zochowski, Kacper"]
[WhiteFideId "1127128"]
[BlackFideId "1125494"]
[WhiteElo "2158"]
[BlackElo "2262"]
[Result "0-1"]
[Round "04"]
[TimeControl "180+2"]
[Date "2023.01.31"]
[WhiteClock "0:00:01"]
[BlackClock "0:00:17"]

1. e4 {[%clk 0:03:00]}  d6 {[%clk 0:02:58]} 2. d4 {[%clk 0:02:50]}  Nf6 {[%clk 0:02:58]} 3. Nc3 {[%clk 0:02:48]}  e5 {[%clk 0:02:58]} 4. Nf3 {[%clk 0:02:46]}  Nbd7 {[%clk 0:02:58]} 5. Bc4 {[%clk 0:02:44]}  Be7 {[%clk 0:02:58]} 6. a4 {[%clk 0:02:40]}  O-O {[%clk 0:02:59]} 7. O-O {[%clk 0:02:40]}  c6 {[%clk 0:02:59]} 8. h3 {[%clk 0:02:39]}  a5 {[%clk 0:02:59]} 9. Ba2 {[%clk 0:02:38]}  exd4 {[%clk 0:02:57]} 10. Nxd4 {[%clk 0:02:37]}  Nc5 {[%clk 0:02:58]} 11. Re1 {[%clk 0:02:36]}  Re8 {[%clk 0:02:58]} 12. Qf3 {[%clk 0:02:28]}  h6 {[%clk 0:02:57]} 13. Nf5 {[%clk 0:02:23]}  Bxf5 {[%clk 0:02:56]} 14. Qxf5 {[%clk 0:02:17]}  Qd7 {[%clk 0:02:51]} 15. Qg6 {[%clk 0:02:02]}  d5 {[%clk 0:02:40]} 16. exd5 {[%clk 0:01:51]}  cxd5 {[%clk 0:02:17]} 17. Qg3 {[%clk 0:01:35]}  Nce4 {[%clk 0:02:16]} 18. Nxe4 {[%clk 0:01:33]}  Nxe4 {[%clk 0:02:17]} 19. Qd3 {[%clk 0:00:51]}  Rad8 {[%clk 0:02:04]} 20. Be3 {[%clk 0:00:46]}  Bf6 {[%clk 0:01:40]} 21. Bb6 {[%clk 0:00:40]}  Rc8 {[%clk 0:01:39]} 22. Rad1 {[%clk 0:00:23]}  Qxa4 {[%clk 0:01:34]} 23. Qxd5 {[%clk 0:00:18]}  Qxc2 {[%clk 0:01:31]} 24. Qxf7+ {[%clk 0:00:17]}  Kh8 {[%clk 0:01:31]} 25. Rc1 {[%clk 0:00:12]}  Qxc1 {[%clk 0:00:57]} 26. Rxc1 {[%clk 0:00:13]}  Rxc1+ {[%clk 0:00:57]} 27. Kh2 {[%clk 0:00:13]}  Nd6 {[%clk 0:00:45]} 28. Qg6 {[%clk 0:00:10]}  Rf8 {[%clk 0:00:41]} 29. Bb1 {[%clk 0:00:08]}  Be5+ {[%clk 0:00:41]} 30. g3 {[%clk 0:00:04]}  Kg8 {[%clk 0:00:21]} 31. Bc5 {[%clk 0:00:04]}  Rf6 {[%clk 0:00:19]} 32. Qe4 {[%clk 0:00:03]}  Rxc5 {[%clk 0:00:18]} 33. Ba2+ {[%clk 0:00:02]}  Kh8 {[%clk 0:00:17]} 34. Qd3 {[%clk 0:00:01]}  Rxf2+ {[%clk 0:00:17]} 35. Kg1 {[%clk 0:00:01]}  Rxb2 {[%clk 0:00:17]} 36. Bb1 {[%clk 0:00:01]}  Rc1+ {[%clk 0:00:17]} 0-1


[Site "https://www.chess.com"]

[Event "Titled Tuesday Blitz January 31 Late 2023"]
[White "Jeet, Jain"]
[Black "Real_taiatai"]
[WhiteFideId "5073022"]
[WhiteElo "2199"]
[BlackElo "2316"]
[Result "1-0"]
[Round "04"]
[TimeControl "180+2"]
[Date "2023.01.31"]
[WhiteClock "0:00:16"]
[BlackClock "0:00:08"]

1. Nf3 {[%clk 0:03:00]}  d5 {[%clk 0:02:59]} 2. g3 {[%clk 0:03:01]}  Nf6 {[%clk 0:02:58]} 3. Bg2 {[%clk 0:03:02]}  c6 {[%clk 0:02:57]} 4. O-O {[%clk 0:03:03]}  Bg4 {[%clk 0:02:57]} 5. d4 {[%clk 0:03:03]}  Nbd7 {[%clk 0:02:57]} 6. Nbd2 {[%clk 0:03:00]}  h6 {[%clk 0:02:55]} 7. Re1 {[%clk 0:03:00]}  e6 {[%clk 0:02:55]} 8. e4 {[%clk 0:02:48]}  dxe4 {[%clk 0:02:54]} 9. Nxe4 {[%clk 0:02:49]}  Be7 {[%clk 0:02:53]} 10. c3 {[%clk 0:02:46]}  O-O {[%clk 0:02:53]} 11. Bf4 {[%clk 0:02:44]}  Nxe4 {[%clk 0:02:51]} 12. Rxe4 {[%clk 0:02:44]}  Nf6 {[%clk 0:02:49]} 13. Re1 {[%clk 0:02:44]}  Nd5 {[%clk 0:02:46]} 14. Bd2 {[%clk 0:02:38]}  c5 {[%clk 0:02:39]} 15. h3 {[%clk 0:02:37]}  Bf5 {[%clk 0:02:38]} 16. Qb3 {[%clk 0:02:10]}  Qb6 {[%clk 0:02:22]} 17. Qxb6 {[%clk 0:02:02]}  axb6 {[%clk 0:02:20]} 18. Ne5 {[%clk 0:02:00]}  Rfd8 {[%clk 0:02:18]} 19. g4 {[%clk 0:01:56]}  Bh7 {[%clk 0:02:14]} 20. c4 {[%clk 0:01:35]}  Nb4 {[%clk 0:01:55]} 21. Bxb4 {[%clk 0:01:32]}  cxb4 {[%clk 0:01:56]} 22. Bxb7 {[%clk 0:01:32]}  Ra5 {[%clk 0:01:26]} 23. Nc6 {[%clk 0:01:25]}  Kf8 {[%clk 0:01:18]} 24. Nxd8 {[%clk 0:01:02]}  Bxd8 {[%clk 0:01:19]} 25. d5 {[%clk 0:00:59]}  Bf6 {[%clk 0:01:03]} 26. d6 {[%clk 0:00:53]}  Bxb2 {[%clk 0:00:58]} 27. Rad1 {[%clk 0:00:51]}  Ke8 {[%clk 0:00:57]} 28. d7+ {[%clk 0:00:40]}  Kd8 {[%clk 0:00:57]} 29. Rd6 {[%clk 0:00:29]}  Be5 {[%clk 0:00:32]} 30. Rdd1 {[%clk 0:00:27]}  Bc3 {[%clk 0:00:29]} 31. Re2 {[%clk 0:00:27]}  Rc5 {[%clk 0:00:24]} 32. Ba6 {[%clk 0:00:26]}  e5 {[%clk 0:00:16]} 33. Bb5 {[%clk 0:00:24]}  f6 {[%clk 0:00:15]} 34. h4 {[%clk 0:00:19]}  Bg8 {[%clk 0:00:15]} 35. Re4 {[%clk 0:00:18]}  Bd4 {[%clk 0:00:14]} 36. Rc1 {[%clk 0:00:17]}  Ke7 {[%clk 0:00:09]} 37. Rd1 {[%clk 0:00:17]}  Be6 {[%clk 0:00:09]} 38. Rdxd4 {[%clk 0:00:15]}  exd4 {[%clk 0:00:09]} 39. Rxe6+ {[%clk 0:00:16]}  Kxe6 {[%clk 0:00:08]} 40. d8=Q {[%clk 0:00:16]} 1-0


[Site "https://www.chess.com"]

[Event "Titled Tuesday Blitz January 31 Late 2023"]
[White "Gardezi, Arsal"]
[Black "Ekdyshman, Mikhail"]
[WhiteFideId "30949521"]
[BlackFideId "4149416"]
[WhiteElo "2093"]
[BlackElo "2264"]
[Result "0-1"]
[Round "04"]
[TimeControl "180+2"]
[Date "2023.01.31"]
[WhiteClock "0:02:02"]
[BlackClock "0:02:23"]

1. Nf3 {[%clk 0:03:00]}  c5 {[%clk 0:02:59]} 2. c3 {[%clk 0:02:56]}  d5 {[%clk 0:02:59]} 3. d4 {[%clk 0:02:46]}  Nf6 {[%clk 0:02:59]} 4. Bf4 {[%clk 0:02:45]}  g6 {[%clk 0:02:58]} 5. Nbd2 {[%clk 0:02:45]}  Bg7 {[%clk 0:02:58]} 6. e3 {[%clk 0:02:43]}  O-O {[%clk 0:02:58]} 7. Bd3 {[%clk 0:02:43]}  b6 {[%clk 0:02:56]} 8. O-O {[%clk 0:02:42]}  Bb7 {[%clk 0:02:44]} 9. Re1 {[%clk 0:02:28]}  Ne4 {[%clk 0:02:43]} 10. Bxe4 {[%clk 0:02:23]}  dxe4 {[%clk 0:02:43]} 11. Ng5 {[%clk 0:02:24]}  e5 {[%clk 0:02:27]} 12. Bxe5 {[%clk 0:02:02]}  Qxg5 {[%clk 0:02:23]} 0-1


[Site "https://www.chess.com"]

[Event "Titled Tuesday Blitz January 31 Late 2023"]
[White "Terletsky, Oleg"]
[Black "Osmonbekov, Talaibek"]
[WhiteFideId "14116774"]
[BlackFideId "2017253"]
[WhiteElo "2160"]
[BlackElo "2137"]
[Result "1-0"]
[Round "04"]
[TimeControl "180+2"]
[Date "2023.01.31"]
[WhiteClock "0:00:39"]
[BlackClock "0:00:01"]

1. e4 {[%clk 0:03:00]}  c5 {[%clk 0:02:59]} 2. Nf3 {[%clk 0:03:00]}  d6 {[%clk 0:03:00]} 3. d4 {[%clk 0:03:01]}  cxd4 {[%clk 0:03:01]} 4. Nxd4 {[%clk 0:03:02]}  Nf6 {[%clk 0:03:01]} 5. Nc3 {[%clk 0:03:02]}  g6 {[%clk 0:03:02]} 6. Bc4 {[%clk 0:03:02]}  Bg7 {[%clk 0:03:01]} 7. Be3 {[%clk 0:03:02]}  Ng4 {[%clk 0:02:55]} 8. Bb5+ {[%clk 0:03:00]}  Kf8 {[%clk 0:02:49]} 9. O-O {[%clk 0:03:00]}  a6 {[%clk 0:02:41]} 10. Bc4 {[%clk 0:02:57]}  Nc6 {[%clk 0:02:29]} 11. Nxc6 {[%clk 0:02:47]}  bxc6 {[%clk 0:02:29]} 12. Bg5 {[%clk 0:02:42]}  Qa5 {[%clk 0:02:16]} 13. Bh4 {[%clk 0:02:20]}  Qh5 {[%clk 0:02:00]} 14. Bg3 {[%clk 0:02:16]}  Be5 {[%clk 0:01:58]} 15. h3 {[%clk 0:02:11]}  Bxg3 {[%clk 0:01:57]} 16. fxg3 {[%clk 0:02:08]}  Qc5+ {[%clk 0:01:53]} 17. Kh1 {[%clk 0:02:06]}  Nf2+ {[%clk 0:01:47]} 18. Rxf2 {[%clk 0:02:02]}  Qxf2 {[%clk 0:01:48]} 19. Qd3 {[%clk 0:02:03]}  Qc5 {[%clk 0:01:19]} 20. Rf1 {[%clk 0:01:50]}  e6 {[%clk 0:01:19]} 21. Qf3 {[%clk 0:01:36]}  Ra7 {[%clk 0:01:14]} 22. Qf6 {[%clk 0:01:26]}  Qe5 {[%clk 0:01:00]} 23. Qd8+ {[%clk 0:01:12]}  Kg7 {[%clk 0:01:00]} 24. Qb6 {[%clk 0:01:11]}  Rb7 {[%clk 0:00:54]} 25. Qxc6 {[%clk 0:01:06]}  Rxb2 {[%clk 0:00:51]} 26. Bb3 {[%clk 0:01:03]}  Rf8 {[%clk 0:00:40]} 27. Na4 {[%clk 0:00:48]}  Rxb3 {[%clk 0:00:30]} 28. axb3 {[%clk 0:00:49]}  Qxg3 {[%clk 0:00:23]} 29. Nb6 {[%clk 0:00:49]}  Qe3 {[%clk 0:00:05]} 30. Nxc8 {[%clk 0:00:44]}  Qe2 {[%clk 0:00:06]} 31. Rf3 {[%clk 0:00:39]}  Qe1+ {[%clk 0:00:01]} 32. Kh2 {[%clk 0:00:39]} 1-0


[Site "https://www.chess.com"]

[Event "Titled Tuesday Blitz January 31 Late 2023"]
[White "Papayan, Oleg"]
[Black "Yanayt, Eugene"]
[WhiteFideId "4193911"]
[BlackFideId "2020165"]
[WhiteElo "2253"]
[BlackElo "2004"]
[Result "1-0"]
[Round "04"]
[TimeControl "180+2"]
[Date "2023.01.31"]
[WhiteClock "0:00:07"]
[BlackClock "0:00:10"]

1. e4 {[%clk 0:03:00]}  c5 {[%clk 0:02:52]} 2. Nf3 {[%clk 0:03:00]}  d6 {[%clk 0:02:50]} 3. d4 {[%clk 0:03:00]}  cxd4 {[%clk 0:02:50]} 4. Qxd4 {[%clk 0:03:01]}  a6 {[%clk 0:02:45]} 5. Nc3 {[%clk 0:02:50]}  Nf6 {[%clk 0:02:41]} 6. Bg5 {[%clk 0:02:47]}  Nc6 {[%clk 0:02:37]} 7. Qd2 {[%clk 0:02:42]}  Nd7 {[%clk 0:02:18]} 8. O-O-O {[%clk 0:02:34]}  g6 {[%clk 0:02:13]} 9. h4 {[%clk 0:02:17]}  h5 {[%clk 0:02:08]} 10. Bc4 {[%clk 0:02:09]}  Bg7 {[%clk 0:02:00]} 11. Rhe1 {[%clk 0:01:42]}  Rb8 {[%clk 0:01:57]} 12. Kb1 {[%clk 0:01:38]}  O-O {[%clk 0:01:54]} 13. Bh6 {[%clk 0:01:33]}  b5 {[%clk 0:01:46]} 14. Bd5 {[%clk 0:01:25]}  Nce5 {[%clk 0:01:40]} 15. Bxg7 {[%clk 0:01:08]}  Kxg7 {[%clk 0:01:36]} 16. Nd4 {[%clk 0:00:57]}  Nb6 {[%clk 0:01:29]} 17. Nc6 {[%clk 0:00:42]}  Nxc6 {[%clk 0:01:26]} 18. Bxc6 {[%clk 0:00:42]}  b4 {[%clk 0:01:15]} 19. Qd4+ {[%clk 0:00:40]}  f6 {[%clk 0:01:12]} 20. Qxb4 {[%clk 0:00:41]}  Nd7 {[%clk 0:01:04]} 21. Qd4 {[%clk 0:00:36]}  Ne5 {[%clk 0:01:03]} 22. Bd5 {[%clk 0:00:34]}  Bb7 {[%clk 0:00:58]} 23. f4 {[%clk 0:00:27]}  Nd7 {[%clk 0:00:54]} 24. Rh1 {[%clk 0:00:21]}  Nc5 {[%clk 0:00:51]} 25. g4 {[%clk 0:00:19]}  e6 {[%clk 0:00:46]} 26. Bb3 {[%clk 0:00:14]}  Nxb3 {[%clk 0:00:42]} 27. axb3 {[%clk 0:00:15]}  Qa5 {[%clk 0:00:36]} 28. gxh5 {[%clk 0:00:12]}  Qxh5 {[%clk 0:00:34]} 29. Qxd6 {[%clk 0:00:12]}  Rbe8 {[%clk 0:00:23]} 30. Qc7+ {[%clk 0:00:11]}  Rf7 {[%clk 0:00:21]} 31. Rd7 {[%clk 0:00:12]}  g5 {[%clk 0:00:15]} 32. Qxb7 {[%clk 0:00:10]}  gxf4 {[%clk 0:00:14]} 33. Rg1+ {[%clk 0:00:07]}  Kf8 {[%clk 0:00:12]} 34. Qb4+ {[%clk 0:00:07]}  Ree7 {[%clk 0:00:10]} 35. Rd8# {[%clk 0:00:07]} 1-0


[Site "https://www.chess.com"]